Workbook

Sheet Отчет
A1: ОТЧЕТ
A2: ОБ ИСПОЛНЕНИИ УЧРЕЖДЕНИЕМ ПЛАНА ЕГО ФИНАНСОВО-ХОЗЯЙСТВЕННОЙ ДЕЯТЕЛЬНОСТИ | J2: КОДЫ
I3: Форма по ОКУД | J3: 0503737
D4: на 01 января 2016 г. | I4: Дата | J4: 01.01.2016
A5: Учреждение | B5: УФК по Саратовской области (Фин. управление администрации Ртищевского муницип. района СОШ №3 ) | I5: по ОКПО | J5: 36172359
A6: Обособленное подразделение
A7: Учредитель | I7: по ОКТМО | J7: 63440000000
A8: Наименование органа, осуществля- | I8: по ОКПО
A9: ющего полномочия учредителя | I9: Глава по БК
A10: Вид финансового обеспечения (деятельности) | B10: Собственные доходы учреждения | J10: 2
A11: Периодичность: годовая
A12: Единица измерения: руб | I12: по ОКЕИ | J12: 383
D13: 1. Доходы учреждения
B14: Код | C14: Код | D14: Утверждено | E14: Исполнено плановых назначений | J14: Не исполнено
A15: Наименование показателя | B15: стро- | C15: анали- | D15: плановых | E15: через лицевые | F15: через банковские | G15: через кассу | H15: некассовыми | I15: итого | J15: плановых
B16: ки | C16: тики | D16: назначений | E16: счета | F16: счета | G16: учреждения | H16: операциями | J16: назначений
A17: 1 | B17: 2 | C17: 3 | D17: 4 | E17: 5 | F17: 6 | G17: 7 | H17: 8 | I17: 9 | J17: 10
A18: Доходы - всего | B18: 010 | D18: =D19+D22+D23+D24+D28+D37 -> 1521892 | E18: =E19+E22+E23+E24+E28+E37 -> 1521892 | F18: =F19+F22+F23+F24+F28+F37 -> 0 | G18: =G19+G22+G23+G24+G28+G37 -> 0 | H18: =H19+H22+H23+H24+H28+H37 -> 0 | I18: =E18+F18+G18+H18 -> 1521892 | J18: =MAX(D18-I18,0) -> 0
A19: Доходы от собственности | B19: 030 | C19: 120 | D19: =D21 -> 0 | E19: =E21 -> 0 | F19: =F21 -> 0 | G19: =G21 -> 0 | H19: =H21 -> 0 | I19: =E19+F19+G19+H19 -> 0 | J19: =MAX(D19-I19,0) -> 0
A20: из них:
A21: от аренды активов | B21: 031 | C21: 120 | D21: 0 | E21: 0 | F21: 0 | G21: 0 | H21: 0 | I21: =E21+F21+G21+H21 -> 0 | J21: =MAX(D21-I21,0) -> 0
A22: Доходы от оказания платных услуг (работ) | B22: 040 | C22: 130 | D22: 1521892 | E22: 1521892 | F22: 0 | G22: 0 | H22: 0 | I22: =E22+F22+G22+H22 -> 1521892 | J22: =MAX(D22-I22,0) -> 0
A23: Доходы от штрафов, пеней, иных сумм принудительного изъятия | B23: 050 | C23: 140 | D23: 0 | E23: 0 | F23: 0 | G23: 0 | H23: 0 | I23: =E23+F23+G23+H23 -> 0 | J23: =MAX(D23-I23,0) -> 0
A24: Безвозмездное поступление от бюджетов | B24: 060 | C24: 150 | D24: =D26+D27 -> 0 | E24: =E26+E27 -> 0 | F24: =F26+F27 -> 0 | G24: =G26+G27 -> 0 | H24: =H26+H27 -> 0 | I24: =E24+F24+G24+H24 -> 0 | J24: =MAX(D24-I24,0) -> 0
A25: в том числе:
A26: поступления от наднациональных организаций и правительств иностранных государств | B26: 062 | C26: 152 | D26: 0 | E26: 0 | F26: 0 | G26: 0 | H26: 0 | I26: =E26+F26+G26+H26 -> 0 | J26: =MAX(D26-I26,0) -> 0
A27: поступления от международных финансовых организаций | B27: 063 | C27: 153 | D27: 0 | E27: 0 | F27: 0 | G27: 0 | H27: 0 | I27: =E27+F27+G27+H27 -> 0 | J27: =MAX(D27-I27,0) -> 0
A28: Доходы от операций с активами | B28: 090 | C28: x | D28: =D30+D31+D32+D33+D34+D35+D36 -> 0 | E28: =E30+E31+E32+E33+E34+E35+E36 -> 0 | F28: =F30+F31+F32+F33+F34+F35+F36 -> 0 | G28: =G30+G31+G32+G33+G34+G35+G36 -> 0 | H28: =H30+H31+H32+H33+H34+H35+H36 -> 0 | I28: =E28+F28+G28+H28 -> 0 | J28: =MAX(D28-I28,0) -> 0
A29: в том числе:
A30: от выбытий основных средств | B30: 092 | C30: 410 | D30: 0 | E30: 0 | F30: 0 | G30: 0 | H30: 0 | I30: =E30+F30+G30+H30 -> 0 | J30: =MAX(D30-I30,0) -> 0
A31: от выбытий нематериальных активов | B31: 093 | C31: 420 | D31: 0 | E31: 0 | F31: 0 | G31: 0 | H31: 0 | I31: 0 | J31: 0
A32: от выбытий непроизведенных активов | B32: 094 | C32: 430 | D32: 0 | E32: 0 | F32: 0 | G32: 0 | H32: 0 | I32: 0 | J32: 0
A33: от выбытий материальных запасов | B33: 095 | C33: 440 | D33: 0 | E33: 0 | F33: 0 | G33: 0 | H33: 0 | I33: 0 | J33: 0
A34: от выбытий ценных бумаг, кроме акций | B34: 096 | C34: 620 | D34: 0 | E34: 0 | F34: 0 | G34: 0 | H34: 0 | I34: 0 | J34: 0
A35: от выбытий акций | B35: 097 | C35: 630 | D35: 0 | E35: 0 | F35: 0 | G35: 0 | H35: 0 | I35: 0 | J35: 0
A36: от выбытий иных финансовых активов | B36: 098 | C36: 650 | D36: 0 | E36: 0 | F36: 0 | G36: 0 | H36: 0 | I36: 0 | J36: 0
A37: Прочие доходы | B37: 100 | C37: 180 | D37: =D39+D40+D41+D42 -> 0 | E37: =E39+E40+E41+E42 -> 0 | F37: =F39+F40+F41+F42 -> 0 | G37: =G39+G40+G41+G42 -> 0 | H37: =H39+H40+H41+H42 -> 0 | I37: 0 | J37: 0
A38: из них:
A39: субсидии | B39: 101 | C39: 180 | D39: 0 | E39: 0 | F39: 0 | G39: 0 | H39: 0 | I39: =E39+F39+G39+H39 -> 0 | J39: =MAX(D39-I39,0) -> 0
A40: субсидии на осуществление капитальных вложений | B40: 102 | C40: 180 | D40: 0 | E40: 0 | F40: 0 | G40: 0 | H40: 0 | I40: =E40+F40+G40+H40 -> 0 | J40: =MAX(D40-I40,0) -> 0
A41: иные трансферты | B41: 103 | C41: 180 | D41: 0 | E41: 0 | F41: 0 | G41: 0 | H41: 0 | I41: =E41+F41+G41+H41 -> 0 | J41: =MAX(D41-I41,0) -> 0
A42: иные прочие доходы | B42: 104 | C42: 180 | D42: 0 | E42: 0 | F42: 0 | G42: 0 | H42: 0 | I42: =E42+F42+G42+H42 -> 0 | J42: =MAX(D42-I42,0) -> 0
D43: 2. Расходы учреждения | J43: Форма 0503737 с.2
B44: Код | C44: Код | D44: Утверждено | E44: Исполнено плановых назначений | J44: Не исполнено
A45: Наименование показателя | B45: стро- | C45: анали- | D45: плановых | E45: через лицевые | F45: через банковские | G45: через кассу | H45: некассовыми | I45: итого | J45: плановых
B46: ки | C46: тики | D46: назначений | E46: счета | F46: счета | G46: учреждения | H46: операциями | J46: назначений
A47: 1 | B47: 2 | C47: 3 | D47: 4 | E47: 5 | F47: 6 | G47: 7 | H47: 8 | I47: 9 | J47: 10
A48: Расходы - всего | B48: 200 | C48: x | D48: =D50+D55+D63+D67+D76+D80+D84+D85+D91 -> 1591054.11 | E48: =E50+E55+E63+E67+E76+E80+E84+E85+E91 -> 1441509.1 | F48: =F50+F55+F63+F67+F76+F80+F84+F85+F91 -> 0 | G48: =G50+G55+G63+G67+G76+G80+G84+G85+G91 -> 0 | H48: =H50+H55+H63+H67+H76+H80+H84+H85+H91 -> 0 | I48: =E48+F48+G48+H48 -> 1441509.1 | J48: =MAX(D48-I48,0) -> 149545.01
A49: в том числе:
A50: Оплата труда и начисления на выплаты по оплате труда | B50: 160 | C50: 210 | D50: =D52+D53+D54 -> 16537.32 | E50: =E52+E53+E54 -> 16537.32 | F50: =F52+F53+F54 -> 0 | G50: =G52+G53+G54 -> 0 | H50: =H52+H53+H54 -> 0 | I50: =E50+F50+G50+H50 -> 16537.32 | J50: =MAX(D50-I50,0) -> 0
A51: в том числе:
A52: заработная плата | B52: 161 | C52: 211 | D52: 12990.83 | E52: 12990.83 | F52: 0 | G52: 0 | H52: 0 | I52: =E52+F52+G52+H52 -> 12990.83 | J52: =MAX(D52-I52,0) -> 0
A53: прочие выплаты | B53: 162 | C53: 212 | D53: 0 | E53: 0 | F53: 0 | G53: 0 | H53: 0 | I53: =E53+F53+G53+H53 -> 0 | J53: =MAX(D53-I53,0) -> 0
A54: начисления на выплаты по оплате труда | B54: 163 | C54: 213 | D54: 3546.49 | E54: 3546.49 | F54: 0 | G54: 0 | H54: 0 | I54: =E54+F54+G54+H54 -> 3546.49 | J54: =MAX(D54-I54,0) -> 0
A55: Приобретение работ, услуг | B55: 170 | C55: 220 | D55: =D57+D58+D59+D60+D61+D62 -> 38438.48 | E55: =E57+E58+E59+E60+E61+E62 -> 38438.48 | F55: =F57+F58+F59+F60+F61+F62 -> 0 | G55: =G57+G58+G59+G60+G61+G62 -> 0 | H55: =H57+H58+H59+H60+H61+H62 -> 0 | I55: =E55+F55+G55+H55 -> 38438.48 | J55: =MAX(D55-I55,0) -> 0
A56: в том числе:
A57: услуги связи | B57: 171 | C57: 221 | D57: 0 | E57: 0 | F57: 0 | G57: 0 | H57: 0 | I57: =E57+F57+G57+H57 -> 0 | J57: =MAX(D57-I57,0) -> 0
A58: транспортные услуги | B58: 172 | C58: 222 | D58: 0 | E58: 0 | F58: 0 | G58: 0 | H58: 0 | I58: 0 | J58: 0
A59: коммунальные услуги | B59: 173 | C59: 223 | D59: 0 | E59: 0 | F59: 0 | G59: 0 | H59: 0 | I59: 0 | J59: 0
A60: арендная плата за пользование имуществом | B60: 174 | C60: 224 | D60: 0 | E60: 0 | F60: 0 | G60: 0 | H60: 0 | I60: 0 | J60: 0
A61: работы, услуги по содержанию имущества | B61: 175 | C61: 225 | D61: 0 | E61: 0 | F61: 0 | G61: 0 | H61: 0 | I61: 0 | J61: 0
A62: прочие работы, услуги | B62: 176 | C62: 226 | D62: 38438.48 | E62: 38438.48 | F62: 0 | G62: 0 | H62: 0 | I62: 38438.48 | J62: 0
A63: Обслуживание долговых обязательств | B63: 190 | C63: 230 | D63: =D65+D66 -> 0 | E63: =E65+E66 -> 0 | F63: =F65+F66 -> 0 | G63: =G65+G66 -> 0 | H63: =H65+H66 -> 0 | I63: 0 | J63: 0
A64: в том числе:
A65: Обслуживание долговых обязательств перед резидентами | B65: 191 | C65: 231 | D65: 0 | E65: 0 | F65: 0 | G65: 0 | H65: 0 | I65: =E65+F65+G65+H65 -> 0 | J65: =MAX(D65-I65,0) -> 0
A66: Обслуживание долговых обязательств перед нерезидентами | B66: 192 | C66: 232 | D66: 0 | E66: 0 | F66: 0 | G66: 0 | H66: 0 | I66: =E66+F66+G66+H66 -> 0 | J66: =MAX(D66-I66,0) -> 0
A67: Безвозмездные перечисления организациям | B67: 210 | C67: 240 | D67: =D69+D70 -> 0 | E67: =E69+E70 -> 0 | F67: =F69+F70 -> 0 | G67: =G69+G70 -> 0 | H67: =H69+H70 -> 0 | I67: =E67+F67+G67+H67 -> 0 | J67: =MAX(D67-I67,0) -> 0
A68: в том числе:
A69: Безвозмездные перечисления государственным и муниципальным организациям | B69: 211 | C69: 241 | D69: 0 | E69: 0 | F69: 0 | G69: 0 | H69: 0 | I69: =E69+F69+G69+H69 -> 0 | J69: =MAX(D69-I69,0) -> 0
A70: Безвозмездные перечисления организациям, за исключением государственных и муниципальных организаций | B70: 212 | C70: 242 | D70: 0 | E70: 0 | F70: 0 | G70: 0 | H70: 0 | I70: =E70+F70+G70+H70 -> 0 | J70: =MAX(D70-I70,0) -> 0
J71: Форма 0503737 с.3
B72: Код | C72: Код | D72: Утверждено | E72: Исполнено плановых назначений | J72: Не исполнено
A73: Наименование показателя | B73: стро- | C73: анали- | D73: плановых | E73: через лицевые | F73: через банковские | G73: через кассу | H73: некассовыми | I73: итого | J73: плановых
B74: ки | C74: тики | D74: назначений | E74: счета | F74: счета | G74: учреждения | H74: операциями | J74: назначений
A75: 1 | B75: 2 | C75: 3 | D75: 4 | E75: 5 | F75: 6 | G75: 7 | H75: 8 | I75: 9 | J75: 10
A76: Безвозмездные перечисления бюджетам | B76: 230 | C76: 250 | D76: =D78+D79 -> 0 | E76: =E78+E79 -> 0 | F76: =F78+F79 -> 0 | G76: =G78+G79 -> 0 | H76: =H78+H79 -> 0 | I76: =E76+F76+G76+H76 -> 0 | J76: =MAX(D76-I76,0) -> 0
A77: в том числе:
A78: перечисления наднациональным организациям и правительствам иностранных государств | B78: 232 | C78: 252 | D78: 0 | E78: 0 | F78: 0 | G78: 0 | H78: 0 | I78: =E78+F78+G78+H78 -> 0 | J78: =MAX(D78-I78,0) -> 0
A79: перечисления международным организациям | B79: 233 | C79: 253 | D79: 0 | E79: 0 | F79: 0 | G79: 0 | H79: 0 | I79: =E79+F79+G79+H79 -> 0 | J79: =MAX(D79-I79,0) -> 0
A80: Социальное обеспечение | B80: 240 | C80: 260 | D80: =D82+D83 -> 0 | E80: =E82+E83 -> 0 | F80: =F82+F83 -> 0 | G80: =G82+G83 -> 0 | H80: =H82+H83 -> 0 | I80: =E80+F80+G80+H80 -> 0 | J80: =MAX(D80-I80,0) -> 0
A81: в том числе:
A82: пособия по социальной помощи населению | B82: 242 | C82: 262 | D82: 0 | E82: 0 | F82: 0 | G82: 0 | H82: 0 | I82: =E82+F82+G82+H82 -> 0 | J82: =MAX(D82-I82,0) -> 0
A83: пенсии, пособия, выплачиваемые организациями сектора государственного управления | B83: 243 | C83: 263 | D83: 0 | E83: 0 | F83: 0 | G83: 0 | H83: 0 | I83: =E83+F83+G83+H83 -> 0 | J83: =MAX(D83-I83,0) -> 0
A84: Прочие расходы | B84: 250 | C84: 290 | D84: 8173 | E84: 8173 | F84: 0 | G84: 0 | H84: 0 | I84: =E84+F84+G84+H84 -> 8173 | J84: =MAX(D84-I84,0) -> 0
A85: Расходы по приобретению нефинансовых активов | B85: 260 | C85: 300 | D85: =D87+D88+D89+D90 -> 1527905.31 | E85: =E87+E88+E89+E90 -> 1378360.3 | F85: =F87+F88+F89+F90 -> 0 | G85: =G87+G88+G89+G90 -> 0 | H85: =H87+H88+H89+H90 -> 0 | I85: =E85+F85+G85+H85 -> 1378360.3 | J85: =MAX(D85-I85,0) -> 149545.01
A86: в том числе:
A87: основных средств | B87: 261 | C87: 310 | D87: 4650 | E87: 4650 | F87: 0 | G87: 0 | H87: 0 | I87: =E87+F87+G87+H87 -> 4650 | J87: =MAX(D87-I87,0) -> 0
A88: нематериальных активов | B88: 262 | C88: 320 | D88: 0 | E88: 0 | F88: 0 | G88: 0 | H88: 0 | I88: =E88+F88+G88+H88 -> 0 | J88: =MAX(D88-I88,0) -> 0
A89: непроизведенных активов | B89: 263 | C89: 330 | D89: 0 | E89: 0 | F89: 0 | G89: 0 | H89: 0 | I89: =E89+F89+G89+H89 -> 0 | J89: =MAX(D89-I89,0) -> 0
A90: материальных запасов | B90: 264 | C90: 340 | D90: 1523255.31 | E90: 1373710.3 | F90: 0 | G90: 0 | H90: 0 | I90: =E90+F90+G90+H90 -> 1373710.3 | J90: =MAX(D90-I90,0) -> 149545.01
A91: Расходы по приобретению финансовых активов | B91: 270 | C91: 500 | D91: =D93+D94+D95 -> 0 | E91: =E93+E94+E95 -> 0 | F91: =F93+F94+F95 -> 0 | G91: =G93+G94+G95 -> 0 | H91: =H93+H94+H95 -> 0 | I91: =E91+F91+G91+H91 -> 0 | J91: =MAX(D91-I91,0) -> 0
A92: из них:
A93: ценных бумаг, кроме акций | B93: 271 | C93: 520 | D93: 0 | E93: 0 | F93: 0 | G93: 0 | H93: 0 | I93: =E93+F93+G93+H93 -> 0 | J93: =MAX(D93-I93,0) -> 0
A94: акций и иных форм участия в капитале | B94: 272 | C94: 530 | D94: 0 | E94: 0 | F94: 0 | G94: 0 | H94: 0 | I94: =E94+F94+G94+H94 -> 0 | J94: =MAX(D94-I94,0) -> 0
A95: иных финансовых активов | B95: 273 | C95: 550 | D95: 0 | E95: 0 | F95: 0 | G95: 0 | H95: 0 | I95: =E95+F95+G95+H95 -> 0 | J95: =MAX(D95-I95,0) -> 0
A96: Возвраты расходов и выплат обеспечений прошлых лет (стр. 300 (гр. 5 - 9) = стр. 900 (гр. 4 - 8) | B96: 300 | C96: x | E96: =D144 -> 0 | F96: =E144 -> 0 | G96: =F144 -> 0 | H96: =G144 -> 0 | I96: =H144 -> 0
A98: Результат исполнения (дефицит / профицит) | B98: 450 | C98: x | D98: =D18-D48 -> -69162.11 | E98: =E18-(E48+E96) -> 80382.9 | F98: =F18-(F48+F96) -> 0 | G98: =G18-(G48+G96) -> 0 | H98: =H18-(H48+H96) -> 0 | I98: =I18-(I48+I96) -> 80382.9 | J98: =J18-J48 -> -149545.01
C99: 3. Источники финансирования дефицита средств учреждения | J99: Форма 0503737 с.4
B100: Код | C100: Код | D100: Утверждено | E100: Исполнено плановых назначений | J100: Не исполнено
A101: Наименование показателя | B101: стро- | C101: анали- | D101: плановых | E101: через лицевые | F101: через банковские | G101: через кассу | H101: некассовыми | I101: итого | J101: плановых
B102: ки | C102: тики | D102: назначений | E102: счета | F102: счета | G102: учреждения | H102: операциями | J102: назначений
A103: 1 | B103: 2 | C103: 3 | D103: 4 | E103: 5 | F103: 6 | G103: 7 | H103: 8 | I103: 9 | J103: 10
A104: Источники финансирования дефицита средств - всего
A105: (стр.520+стр.620+стр.700+стр.730+стр.820+стр.830) | B105: 500 | D105: =D107+D114+D119+D122+D131+D135 -> 69162.11 | E105: -80382.9 | F105: 0 | G105: 0 | H105: 0 | I105: -80382.9 | J105: =MAX(D105-I105,0) -> 149545.01
A106: в том числе:
A107: Внутренние источники | B107: 520 | D107: =D109+D110+D111+D112+D113 -> 0 | E107: =E109+E110+E111+E112+E113 -> 0 | F107: =F109+F110+F111+F112+F113 -> 0 | G107: =G109+G110+G111+G112+G113 -> 0 | H107: =H109+H110+H111+H112+H113 -> 0 | I107: =E107+F107+G107+H107 -> 0 | J107: =MAX(D107-I107,0) -> 0
A108: из них:
A109: курсовая разница | B109: 521 | C109: 171 | E109: 0 | F109: 0 | G109: 0 | H109: 0 | I109: =E109+F109+G109+H109 -> 0 | J109: =MAX(D109-I109,0) -> 0
A110: поступления от погашения займов (ссуд) | B110: 525 | C110: 640 | E110: 0 | F110: 0 | G110: 0 | H110: 0 | I110: 0 | J110: 0
A111: выплаты по предоставлению займов (ссуд) | B111: 526 | C111: 540 | E111: 0 | F111: 0 | G111: 0 | H111: 0 | I111: 0 | J111: 0
A112: поступления от заимствований от резидентов | B112: 527 | C112: 710 | E112: 0 | F112: 0 | G112: 0 | H112: 0 | I112: 0 | J112: 0
A113: поступления от заимствований от нерезидентов | B113: 528 | C113: 810 | E113: 0 | F113: 0 | G113: 0 | H113: 0 | I113: 0 | J113: 0
A114: Внешние источники | B114: 620 | D114: =D116+D117+D118 -> 0 | E114: =E116+E117+E118 -> 0 | F114: =F116+F117+F118 -> 0 | G114: =G116+G117+G118 -> 0 | H114: =H116+H117+H118 -> 0 | I114: 0 | J114: 0
A115: из них:
A116: курсовая разница | B116: 621 | C116: 171 | I116: =E116+F116+G116+H116 -> 0 | J116: =MAX(D116-I116,0) -> 0
A117: поступления от заимствований от резидентов | B117: 625 | C117: 720 | E117: 0 | F117: 0 | G117: 0 | H117: 0 | I117: =E117+F117+G117+H117 -> 0 | J117: =MAX(D117-I117,0) -> 0
A118: поступления от заимствований от нерезидентов | B118: 626 | C118: 820 | E118: 0 | F118: 0 | G118: 0 | H118: 0 | I118: =E118+F118+G118+H118 -> 0 | J118: =MAX(D118-I118,0) -> 0
A119: Изменение остатков средств | B119: 700 | C119: x | D119: 69162.11 | E119: =E120+E121 -> -80382.9 | F119: =F120+F121 -> 0 | G119: =G120+G121 -> 0 | H119: =H120+H121 -> 0 | I119: =I120+I121 -> -80382.9 | J119: =MAX(D119-I119,0) -> 149545.01
A120: увеличение остатков средств, всего | B120: 710 | C120: 510 | E120: -1521892 | F120: 0 | G120: 0 | I120: =E120+F120+G120+H120 -> -1521892 | J120: x
A121: уменьшение остатков средств, всего | B121: 720 | C121: 610 | E121: 1441509.1 | F121: 0 | G121: 0 | I121: =E121+F121+G121+H121 -> 1441509.1 | J121: x
A122: Изменение остатков по внутренним оборотам средств учреждения | B122: 730 | C122: x | D122: =D124+D125 -> 0 | E122: 0 | F122: 0 | G122: 0 | H122: 0 | I122: 0 | J122: =MAX(D122-I122,0) -> 0
A123: в том числе:
A124: увеличение остатков средств учреждения | B124: 731 | C124: 510 | E124: 0 | F124: 0 | G124: 0 | I124: =E124+F124+G124+H124 -> 0 | J124: x
A125: уменьшение остатков средств учреждения | B125: 732 | C125: 610 | E125: 0 | F125: 0 | G125: 0 | H125: 0 | I125: =E125+F125+G125+H125 -> 0 | J125: x
J126: Форма 0503737 с.5
B127: Код | C127: Код | D127: Утверждено | E127: Исполнено плановых назначений | J127: Не исполнено
A128: Наименование показателя | B128: стро- | C128: анали- | D128: плановых | E128: через лицевые | F128: через банковские | G128: через кассу | H128: некассовыми | I128: итого | J128: плановых
B129: ки | C129: тики | D129: назначений | E129: счета | F129: счета | G129: учреждения | H129: операциями | J129: назначений
A130: 1 | B130: 2 | C130: 3 | D130: 4 | E130: 5 | F130: 6 | G130: 7 | H130: 8 | I130: 9 | J130: 10
A131: Изменение остатков по внутренним расчетам | B131: 820 | C131: x | D131: =D133+D134 -> 0 | E131: 0 | F131: 0 | G131: 0 | H131: 0 | I131: 0 | J131: =MAX(D131-I131,0) -> 0
A132: в том числе:
A133: увеличение остатков по внутренним расчетам (Кт 030404510) | B133: 821 | E133: 0 | F133: 0 | I133: =E133+F133+G133+H133 -> 0 | J133: =MAX(D133-I133,0) -> 0
A134: уменьшение остатков по внутренним расчетам (Дт 030404610) | B134: 822 | E134: 0 | F134: 0 | I134: =E134+F134+G134+H134 -> 0 | J134: =MAX(D134-I134,0) -> 0
A135: Изменение остатков расчетов по внутренним привлечениям средств | B135: 830 | C135: x | D135: =D137+D138 -> 0 | E135: 0 | F135: 0 | G135: 0 | H135: 0 | I135: 0 | J135: =MAX(D135-I135,0) -> 0
A136: в том числе:
A137: увеличение расчетов по внутреннему привлечению остатков средств (Кт 030406000) | B137: 831 | E137: 0 | F137: 0 | G137: 0 | H137: 0 | I137: =E137+F137+G137+H137 -> 0 | J137: =MAX(D137-I137,0) -> 0
A138: уменьшение расчетов по внутреннему привлечению остатков средств (Дт 030406000) | B138: 832 | E138: 0 | F138: 0 | G138: 0 | H138: 0 | I138: =E138+F138+G138+H138 -> 0 | J138: =MAX(D138-I138,0) -> 0
C139: 4. Сведения о возвратах расходов и выплат обеспечений прошлых лет | J139: Форма 0503737 с.6
B140: Код | C140: Код | D140: Исполнено плановых назначений
A141: Наименование показателя | B141: стро- | C141: анали- | D141: через лицевые | E141: через банковские | F141: через кассу | G141: некассовыми | H141: итого
B142: ки | C142: тики | D142: счета | E142: счета | F142: учреждения | G142: операциями
A143: 1 | B143: 2 | C143: 3 | D143: 4 | E143: 5 | F143: 6 | G143: 7 | H143: 8
A144: Возвращено расходов и обеспечений прошлых лет, всего | B144: 900 | C144: x | D144: =SUM(D145:D146) -> 0 | E144: =SUM(E145:E146) -> 0 | F144: =SUM(F145:F146) -> 0 | G144: =SUM(G145:G146) -> 0 | H144: =D144+E144+F144+G144 -> 0
A145: из них по кодам аналитики:
B146: 901 | H146: =D146+E146+F146+G146 -> 0
A150: Руководитель _____________________________ | B150: Рудаева С.В. | F150: Руководитель финансово- ____________________ ___________________________
A151: (подпись) | B151: (расшифровка подписи) | F151: экономической службы (подпись) (расшифровка подписи)
A153: Главный бухгалтер _________________________ | B153: Окружко Н.Г.
A154: (подпись) | B154: (расшифровка подписи)
E155: Централизованная бухгалтерия
G156: (наименование, ОГРН, ИНН, КПП, местонахождение)
E158: Руководитель | F158: ___________________ ___________________ __________________________
E159: (уполномоченное лицо) (должность) (подпись) (расшифровка подписи)
A161: Исполнитель ____________________ __________________
A162: (должность) (подпись) | D162: (расшифровка подписи) | G162: (телефон, e-mail)
A164: " _______ " ______________________ 20____ г.

Sheet Настройка
B1: This.Print0s = .T. | C1: Header | IU1: :бR^ћфИЈЫ ЉК±
B2: __p_Date = Iif(Empty(m.dReoDate), m.dDateEnd + 1, m.dReoDate) | C2: Header
B3: __p_OrgRn = Iif(m.cOrg # "|" And Len(m.cOrg) == 4, m.cOrg, oSystem.OwnerOrgRn) | C3: Header
A4: ДатаОтчета | B4: "на " + DToCLong(__p_Date) | C4: Header
A5: Дата | B5: DToC2000(__p_Date) | C5: Header
A6: ОРГАНИЗАЦИЯ | B6: This.__getOrgName(__p_OrgRn) | C6: Header
A7: ОКПО | B7: AllTrim(This.Seek_TableFields("Org", "RN", "Org.OKPO", __p_OrgRn)) | C7: Header
A8: Учредитель | B8: This.__getOrgName(m.cRN_Found) | C8: Header
A9: ОКАТО | B9: AllTrim(This.Seek_TableFields("OrgBase", "RN", "OrgBase.OKATO", __p_OrgRn)) | C9: Header
A10: ОКПО2 | B10: AllTrim(This.Seek_TableFields("Org", "RN", "Org.OKPO", m.cRN_Found)) | C10: Header
A11: ГлаваБК | B11: AllTrim(m.glBK) | C11: Header
B12: __p_VFO = Iif(Empty(m.cVFO), "", RTrim(arrVFO(AScan(arrVFO, m.cVFO) - 1))) | C12: Header
A13: ВидФинОб | B13: Iif(Empty(m.cVFO), "", RTrim(Left(__p_VFO, AT("(код", __p_VFO) - 1))) | C13: Header
A14: ВидФинОбКод | B14: m.cVFO | C14: Header
A15: Периодичность | B15: "Периодичность: " + Iif(!Empty(m.dReoDate), "реорганизация", Iif(Month(m.dDateEnd + 1) = 1, "годовая", Iif(Inli(Month(m.dDateEnd + 1), 4, 7, 10), "квартальная", "месячная"))) | C15: Header
A16: Столбец4Строка031 | B16: m.nCol4Row031 | C16: Header
A17: Столбец5Строка031 | B17: m.nCol5Row031 | C17: Header
A18: Столбец6Строка031 | B18: m.nCol6Row031 | C18: Header
A19: Столбец7Строка031 | B19: m.nCol7Row031 | C19: Header
A20: Столбец8Строка031 | B20: m.nCol8Row031 | C20: Header
A21: Столбец4Строка040 | B21: m.nCol4Row040 | C21: Header
A22: Столбец5Строка040 | B22: m.nCol5Row040 | C22: Header
A23: Столбец6Строка040 | B23: m.nCol6Row040 | C23: Header
A24: Столбец7Строка040 | B24: m.nCol7Row040 | C24: Header
A25: Столбец8Строка040 | B25: m.nCol8Row040 | C25: Header
A26: Столбец4Строка050 | B26: m.nCol4Row050 | C26: Header
A27: Столбец5Строка050 | B27: m.nCol5Row050 | C27: Header
A28: Столбец6Строка050 | B28: m.nCol6Row050 | C28: Header
A29: Столбец7Строка050 | B29: m.nCol7Row050 | C29: Header
A30: Столбец8Строка050 | B30: m.nCol8Row050 | C30: Header
A31: Столбец4Строка062 | B31: m.nCol4Row062 | C31: Header
A32: Столбец5Строка062 | B32: m.nCol5Row062 | C32: Header
A33: Столбец6Строка062 | B33: m.nCol6Row062 | C33: Header
A34: Столбец7Строка062 | B34: m.nCol7Row062 | C34: Header
A35: Столбец8Строка062 | B35: m.nCol8Row062 | C35: Header
A36: Столбец4Строка063 | B36: m.nCol4Row063 | C36: Header
A37: Столбец5Строка063 | B37: m.nCol5Row063 | C37: Header
A38: Столбец6Строка063 | B38: m.nCol6Row063 | C38: Header
A39: Столбец7Строка063 | B39: m.nCol7Row063 | C39: Header
A40: Столбец8Строка063 | B40: m.nCol8Row063 | C40: Header
A41: Столбец4Строка092 | B41: m.nCol4Row092 | C41: Header
A42: Столбец5Строка092 | B42: m.nCol5Row092 | C42: Header
A43: Столбец6Строка092 | B43: m.nCol6Row092 | C43: Header
A44: Столбец7Строка092 | B44: m.nCol7Row092 | C44: Header
A45: Столбец8Строка092 | B45: m.nCol8Row092 | C45: Header
A46: Столбец4Строка093 | B46: m.nCol4Row093 | C46: Header
A47: Столбец5Строка093 | B47: m.nCol5Row093 | C47: Header
A48: Столбец6Строка093 | B48: m.nCol6Row093 | C48: Header
A49: Столбец7Строка093 | B49: m.nCol7Row093 | C49: Header
A50: Столбец8Строка093 | B50: m.nCol8Row093 | C50: Header
A51: Столбец4Строка094 | B51: m.nCol4Row094 | C51: Header
A52: Столбец5Строка094 | B52: m.nCol5Row094 | C52: Header
A53: Столбец6Строка094 | B53: m.nCol6Row094 | C53: Header
A54: Столбец7Строка094 | B54: m.nCol7Row094 | C54: Header
A55: Столбец8Строка094 | B55: m.nCol8Row094 | C55: Header
A56: Столбец4Строка095 | B56: m.nCol4Row095 | C56: Header
A57: Столбец5Строка095 | B57: m.nCol5Row095 | C57: Header
A58: Столбец6Строка095 | B58: m.nCol6Row095 | C58: Header
A59: Столбец7Строка095 | B59: m.nCol7Row095 | C59: Header
A60: Столбец8Строка095 | B60: m.nCol8Row095 | C60: Header
A61: Столбец4Строка096 | B61: m.nCol4Row096 | C61: Header
A62: Столбец5Строка096 | B62: m.nCol5Row096 | C62: Header
A63: Столбец6Строка096 | B63: m.nCol6Row096 | C63: Header
A64: Столбец7Строка096 | B64: m.nCol7Row096 | C64: Header
A65: Столбец8Строка096 | B65: m.nCol8Row096 | C65: Header
A66: Столбец4Строка097 | B66: m.nCol4Row097 | C66: Header
A67: Столбец5Строка097 | B67: m.nCol5Row097 | C67: Header
A68: Столбец6Строка097 | B68: m.nCol6Row097 | C68: Header
A69: Столбец7Строка097 | B69: m.nCol7Row097 | C69: Header
A70: Столбец8Строка097 | B70: m.nCol8Row097 | C70: Header
A71: Столбец4Строка098 | B71: m.nCol4Row098 | C71: Header
A72: Столбец5Строка098 | B72: m.nCol5Row098 | C72: Header
A73: Столбец6Строка098 | B73: m.nCol6Row098 | C73: Header
A74: Столбец7Строка098 | B74: m.nCol7Row098 | C74: Header
A75: Столбец8Строка098 | B75: m.nCol8Row098 | C75: Header
A76: Столбец4Строка101 | B76: m.nCol4Row101 | C76: Header
A77: Столбец5Строка101 | B77: m.nCol5Row101 | C77: Header
A78: Столбец6Строка101 | B78: m.nCol6Row101 | C78: Header
A79: Столбец7Строка101 | B79: m.nCol7Row101 | C79: Header
A80: Столбец4Строка102 | B80: m.nCol4Row102 | C80: Header
A81: Столбец5Строка102 | B81: m.nCol5Row102 | C81: Header
A82: Столбец6Строка102 | B82: m.nCol6Row102 | C82: Header
A83: Столбец7Строка102 | B83: m.nCol7Row102 | C83: Header
A84: Столбец4Строка103 | B84: m.nCol4Row103 | C84: Header
A85: Столбец5Строка103 | B85: m.nCol5Row103 | C85: Header
A86: Столбец6Строка103 | B86: m.nCol6Row103 | C86: Header
A87: Столбец7Строка103 | B87: m.nCol7Row103 | C87: Header
A88: Столбец4Строка104 | B88: m.nCol4Row104 | C88: Header
A89: Столбец5Строка104 | B89: m.nCol5Row104 | C89: Header
A90: Столбец6Строка104 | B90: m.nCol6Row104 | C90: Header
A91: Столбец7Строка104 | B91: m.nCol7Row104 | C91: Header
A92: Столбец8Строка104 | B92: m.nCol8Row104 | C92: Header
A93: Столбец4Строка161 | B93: m.nCol4Row161 | C93: Header
A94: Столбец5Строка161 | B94: m.nCol5Row161 | C94: Header
A95: Столбец6Строка161 | B95: m.nCol6Row161 | C95: Header
A96: Столбец7Строка161 | B96: m.nCol7Row161 | C96: Header
A97: Столбец8Строка161 | B97: m.nCol8Row161 | C97: Header
A98: Столбец4Строка162 | B98: m.nCol4Row162 | C98: Header
A99: Столбец5Строка162 | B99: m.nCol5Row162 | C99: Header
A100: Столбец6Строка162 | B100: m.nCol6Row162 | C100: Header
A101: Столбец7Строка162 | B101: m.nCol7Row162 | C101: Header
A102: Столбец8Строка162 | B102: m.nCol8Row162 | C102: Header
A103: Столбец4Строка163 | B103: m.nCol4Row163 | C103: Header
A104: Столбец5Строка163 | B104: m.nCol5Row163 | C104: Header
A105: Столбец6Строка163 | B105: m.nCol6Row163 | C105: Header
A106: Столбец7Строка163 | B106: m.nCol7Row163 | C106: Header
A107: Столбец8Строка163 | B107: m.nCol8Row163 | C107: Header
A108: Столбец4Строка171 | B108: m.nCol4Row171 | C108: Header
A109: Столбец5Строка171 | B109: m.nCol5Row171 | C109: Header
A110: Столбец6Строка171 | B110: m.nCol6Row171 | C110: Header
A111: Столбец7Строка171 | B111: m.nCol7Row171 | C111: Header
A112: Столбец8Строка171 | B112: m.nCol8Row171 | C112: Header
A113: Столбец4Строка172 | B113: m.nCol4Row172 | C113: Header
A114: Столбец5Строка172 | B114: m.nCol5Row172 | C114: Header
A115: Столбец6Строка172 | B115: m.nCol6Row172 | C115: Header
A116: Столбец7Строка172 | B116: m.nCol7Row172 | C116: Header
A117: Столбец8Строка172 | B117: m.nCol8Row172 | C117: Header
A118: Столбец4Строка173 | B118: m.nCol4Row173 | C118: Header
A119: Столбец5Строка173 | B119: m.nCol5Row173 | C119: Header
A120: Столбец6Строка173 | B120: m.nCol6Row173 | C120: Header
A121: Столбец7Строка173 | B121: m.nCol7Row173 | C121: Header
A122: Столбец8Строка173 | B122: m.nCol8Row173 | C122: Header
A123: Столбец4Строка174 | B123: m.nCol4Row174 | C123: Header
A124: Столбец5Строка174 | B124: m.nCol5Row174 | C124: Header
A125: Столбец6Строка174 | B125: m.nCol6Row174 | C125: Header
A126: Столбец7Строка174 | B126: m.nCol7Row174 | C126: Header
A127: Столбец8Строка174 | B127: m.nCol8Row174 | C127: Header
A128: Столбец4Строка175 | B128: m.nCol4Row175 | C128: Header
A129: Столбец5Строка175 | B129: m.nCol5Row175 | C129: Header
A130: Столбец6Строка175 | B130: m.nCol6Row175 | C130: Header
A131: Столбец7Строка175 | B131: m.nCol7Row175 | C131: Header
A132: Столбец8Строка175 | B132: m.nCol8Row175 | C132: Header
A133: Столбец4Строка176 | B133: m.nCol4Row176 | C133: Header
A134: Столбец5Строка176 | B134: m.nCol5Row176 | C134: Header
A135: Столбец6Строка176 | B135: m.nCol6Row176 | C135: Header
A136: Столбец7Строка176 | B136: m.nCol7Row176 | C136: Header
A137: Столбец8Строка176 | B137: m.nCol8Row176 | C137: Header
A138: Столбец4Строка191 | B138: m.nCol4Row191 | C138: Header
A139: Столбец5Строка191 | B139: m.nCol5Row191 | C139: Header
A140: Столбец6Строка191 | B140: m.nCol6Row191 | C140: Header
A141: Столбец7Строка191 | B141: m.nCol7Row191 | C141: Header
A142: Столбец8Строка191 | B142: m.nCol8Row191 | C142: Header
A143: Столбец4Строка192 | B143: m.nCol4Row192 | C143: Header
A144: Столбец5Строка192 | B144: m.nCol5Row192 | C144: Header
A145: Столбец6Строка192 | B145: m.nCol6Row192 | C145: Header
A146: Столбец7Строка192 | B146: m.nCol7Row192 | C146: Header
A147: Столбец8Строка192 | B147: m.nCol8Row192 | C147: Header
A148: Столбец4Строка211 | B148: m.nCol4Row211 | C148: Header
A149: Столбец5Строка211 | B149: m.nCol5Row211 | C149: Header
A150: Столбец6Строка211 | B150: m.nCol6Row211 | C150: Header
A151: Столбец7Строка211 | B151: m.nCol7Row211 | C151: Header
A152: Столбец8Строка211 | B152: m.nCol8Row211 | C152: Header
A153: Столбец4Строка212 | B153: m.nCol4Row212 | C153: Header
A154: Столбец5Строка212 | B154: m.nCol5Row212 | C154: Header
A155: Столбец6Строка212 | B155: m.nCol6Row212 | C155: Header
A156: Столбец7Строка212 | B156: m.nCol7Row212 | C156: Header
A157: Столбец8Строка212 | B157: m.nCol8Row212 | C157: Header
A158: Столбец4Строка232 | B158: m.nCol4Row232 | C158: Header
A159: Столбец5Строка232 | B159: m.nCol5Row232 | C159: Header
A160: Столбец6Строка232 | B160: m.nCol6Row232 | C160: Header
A161: Столбец7Строка232 | B161: m.nCol7Row232 | C161: Header
A162: Столбец8Строка232 | B162: m.nCol8Row232 | C162: Header
A163: Столбец4Строка233 | B163: m.nCol4Row233 | C163: Header
A164: Столбец5Строка233 | B164: m.nCol5Row233 | C164: Header
A165: Столбец6Строка233 | B165: m.nCol6Row233 | C165: Header
A166: Столбец7Строка233 | B166: m.nCol7Row233 | C166: Header
A167: Столбец8Строка233 | B167: m.nCol8Row233 | C167: Header
A168: Столбец4Строка242 | B168: m.nCol4Row242 | C168: Header
A169: Столбец5Строка242 | B169: m.nCol5Row242 | C169: Header
A170: Столбец6Строка242 | B170: m.nCol6Row242 | C170: Header
A171: Столбец7Строка242 | B171: m.nCol7Row242 | C171: Header
A172: Столбец8Строка242 | B172: m.nCol8Row242 | C172: Header
A173: Столбец4Строка243 | B173: m.nCol4Row243 | C173: Header
A174: Столбец5Строка243 | B174: m.nCol5Row243 | C174: Header
A175: Столбец6Строка243 | B175: m.nCol6Row243 | C175: Header
A176: Столбец7Строка243 | B176: m.nCol7Row243 | C176: Header
A177: Столбец8Строка243 | B177: m.nCol8Row243 | C177: Header
A178: Столбец4Строка250 | B178: m.nCol4Row250 | C178: Header
A179: Столбец5Строка250 | B179: m.nCol5Row250 | C179: Header
A180: Столбец6Строка250 | B180: m.nCol6Row250 | C180: Header
A181: Столбец7Строка250 | B181: m.nCol7Row250 | C181: Header
A182: Столбец8Строка250 | B182: m.nCol8Row250 | C182: Header
A183: Столбец4Строка261 | B183: m.nCol4Row261 | C183: Header
A184: Столбец5Строка261 | B184: m.nCol5Row261 | C184: Header
A185: Столбец6Строка261 | B185: m.nCol6Row261 | C185: Header
A186: Столбец7Строка261 | B186: m.nCol7Row261 | C186: Header
A187: Столбец8Строка261 | B187: m.nCol8Row261 | C187: Header
A188: Столбец4Строка262 | B188: m.nCol4Row262 | C188: Header
A189: Столбец5Строка262 | B189: m.nCol5Row262 | C189: Header
A190: Столбец6Строка262 | B190: m.nCol6Row262 | C190: Header
A191: Столбец7Строка262 | B191: m.nCol7Row262 | C191: Header
A192: Столбец8Строка262 | B192: m.nCol8Row262 | C192: Header
A193: Столбец4Строка263 | B193: m.nCol4Row263 | C193: Header
A194: Столбец5Строка263 | B194: m.nCol5Row263 | C194: Header
A195: Столбец6Строка263 | B195: m.nCol6Row263 | C195: Header
A196: Столбец7Строка263 | B196: m.nCol7Row263 | C196: Header
A197: Столбец8Строка263 | B197: m.nCol8Row263 | C197: Header
A198: Столбец4Строка264 | B198: m.nCol4Row264 | C198: Header
A199: Столбец5Строка264 | B199: m.nCol5Row264 | C199: Header
A200: Столбец6Строка264 | B200: m.nCol6Row264 | C200: Header
... 146 more rows

Sheet Выгрузка в ГНИ 4
A1: Путь к файлу выгрузки: | C1: E:\OBMEN\ОКРУЖКО\Выгрузка отчетов\ГНИ ф. 737-5\NO_BOUCHR6.2_6446_6446_6446010014644601001_20160215_1.xml
G2: <textout version="1.0" caption="Выгрузка в ГНИ 4"/>
G3: <btn page="Выгрузка в ГНИ 4" coord="(450, 90, 100, 25)"/>
A4: Корень | B4: Файл | D4: * | J4: Файл обмена
A5: Атрибут | B5: ИдФайл | C5: NO_BOUCHR6.2_6446_6446_6446010014644601001_20160215_1 | D5: * | J5: Идентификатор файла
A6: Атрибут | B6: ВерсПрог | C6: ПАРУС Бухгалтерия | D6: * | J6: Версия передающей программы
A7: Атрибут | B7: ВерсФорм | C7: 5.02 | D7: * | J7: Версия формата
A8: Элемент | B8: Документ | D8: * | J8: Состав и структура документа
A9: Атрибут | B9: КНД | C9: 0503737 | D9: * | J9: Код формы отчетности по КНД
A10: Атрибут | B10: ДатаДок | C10: 15.02.2016 | D10: * | J10: Дата формирования документа
A11: Атрибут | B11: Период | C11: 34 | D11: * | J11: Отчетный период
A12: Атрибут | B12: ОтчетГод | C12: 2015 | D12: * | J12: Отчетный год
A13: Атрибут | B13: НомКорр | C13: 0 | D13: * | J13: Номер корректировки
A14: Элемент | B14: СвНП | D14: * | J14: Сведения о налогоплательщике
A15: Атрибут | B15: ОКПО | C15: 36172359 | J15: Код по ОКПО
A16: Атрибут | B16: ОКАТО | C16: 63440000000 | J16: Код по ОКАТО
A17: Атрибут | B17: ОКПО_Учр | J17: Код органа, осуществляющего полномочия учредителя по ОКПО
A18: Атрибут | B18: ВидФО | C18: 2 | D18: * | J18: Вид финансового обеспечения (деятельности) учреждения
A19: Атрибут | B19: ГлаваБК | J19: Глава по БК
A20: Элемент | B20: НПЮЛ | D20: * | J20: Налогоплательщик – учреждение
A21: Атрибут | B21: НаимОрг | C21: УФК по Саратовской области (Фин. управление администрации Ртищевского муницип. района СОШ №3 ) | D21: * | J21: Наименование учреждения
A22: Атрибут | B22: ИННЮЛ | C22: 6446010014 | D22: * | J22: ИНН учреждения
A23: Атрибут | B23: КПП | C23: 644601001 | D23: * | J23: КПП учреждения
A24: Атрибут | B24: НаимОП | J24: Наименование обособленного подразделения
A25: Атрибут | B25: Учредит | J25: Учредитель
A26: Атрибут | B26: УчредПолн | J26: Наименование органа, осуществляющего полномочия учредителя
A27: ###
A28: ###
A29: Элемент | B29: Подписант | D29: * | J29: Сведения о лице, подписавшем документ
A30: Атрибут | B30: ПрПодп | C30: 1 | D30: * | J30: Признак лица, подписавшего документ (1 - руководитель, 2 – уполномоченный представитель)
A31: Атрибут | B31: Тлф | J31: Номер контактного телефона
A32: Атрибут | B32: E-mail | J32: E-mail
A33: Элемент | B33: ФИО | D33: * | J33: Фамилия, имя, отчество руководителя (уполномоченного представителя)
A34: Атрибут | B34: Фамилия | C34: Рудаева | D34: * | J34: Фамилия
A35: Атрибут | B35: Имя | C35: Светлана | D35: * | J35: Имя
A36: Атрибут | B36: Отчество | C36: Владимировна | J36: Отчество
A37: ###
A38: Элемент | B38: ФИОГлБух | J38: Фамилия, имя, отчество главного бухгалтера
A39: Атрибут | B39: Фамилия | C39: Окружко | D39: * | J39: Фамилия
A40: Атрибут | B40: Имя | C40: Наталья | D40: * | J40: Имя
A41: Атрибут | B41: Отчество | C41: Григорьевна | J41: Отчество
A42: ###
A43: Элемент | B43: ФИОРукПЭС | J43: Фамилия, имя, отчество руководителя планово-экономической службы
A44: Атрибут | B44: Фамилия | D44: * | J44: Фамилия
A45: Атрибут | B45: Имя | D45: * | J45: Имя
A46: Атрибут | B46: Отчество | J46: Отчество
A47: ###
A48: Элемент | B48: СвПред | J48: Сведения об уполномоченном представителе
A49: Атрибут | B49: НаимДок | D49: * | J49: Наименование документа, подтверждающего полномочия представителя
A50: ###
A51: ###
A52: Элемент | B52: ОтчетПланФХД | D52: * | J52: Отчет об исполнении учреждением плана его финансово-хозяйственной деятельности
A53: Атрибут | B53: ДатаОтч | C53: 15.02.2016 | D53: * | J53: Дата, на которую сформирован документ
A54: Атрибут | B54: ОКЕИ | C54: 383 | D54: * | J54: Код единицы измерения по ОКЕИ
A55: Элемент | B55: Доход | J55: Доходы учреждения
A56: Элемент | B56: ДохВс | D56: * | J56: Доходы всего
A57: Атрибут | B57: КодАналит | J57: Код аналитики
A58: Атрибут | B58: УтвПланНазн | C58: =Отчет!D18 -> 1521892 | J58: Утверждено плановых назначений
A59: Атрибут | B59: ИспЛицСч | C59: =Отчет!E18 -> 1521892 | J59: Исполнено плановых назначений через лицевые счета
A60: Атрибут | B60: ИспБанкСч | C60: =Отчет!F18 -> 0 | J60: Исполнено плановых назначений через банковские счета
A61: Атрибут | B61: ИспКасУчр | C61: =Отчет!G18 -> 0 | J61: Исполнено плановых назначений через кассу учреждения
A62: Атрибут | B62: ИспНекасОп | C62: =Отчет!H18 -> 0 | J62: Исполнено плановых назначений некассовыми операциями
A63: Атрибут | B63: ИспИтого | C63: =Отчет!I18 -> 1521892 | J63: Исполнено плановых назначений итого
A64: Атрибут | B64: НеИспПланНазн | C64: =Отчет!J18 -> 0 | J64: Не исполнено плановых назначений
A65: ###
A66: Элемент | B66: ДохСобств | J66: Доходы от собственности
A67: Элемент | B67: ДохСобствВс | D67: * | J67: Доходы от собственности всего
A68: Атрибут | B68: КодАналит | C68: =Отчет!C19 -> 120 | J68: Код аналитики
A69: Атрибут | B69: УтвПланНазн | C69: =Отчет!D19 -> 0 | J69: Утверждено плановых назначений
A70: Атрибут | B70: ИспЛицСч | C70: =Отчет!E19 -> 0 | J70: Исполнено плановых назначений через лицевые счета
A71: Атрибут | B71: ИспБанкСч | C71: =Отчет!F19 -> 0 | J71: Исполнено плановых назначений через банковские счета
A72: Атрибут | B72: ИспКасУчр | C72: =Отчет!G19 -> 0 | J72: Исполнено плановых назначений через кассу учреждения
A73: Атрибут | B73: ИспНекасОп | C73: =Отчет!H19 -> 0 | J73: Исполнено плановых назначений некассовыми операциями
A74: Атрибут | B74: ИспИтого | C74: =Отчет!I19 -> 0 | J74: Исполнено плановых назначений итого
A75: Атрибут | B75: НеИспПланНазн | C75: =Отчет!J19 -> 0 | J75: Не исполнено плановых назначений
A76: ###
A77: Элемент | B77: ДохАрендАкт | J77: От аренды активов
A78: Атрибут | B78: КодАналит | C78: =Отчет!C21 -> 120 | J78: Код аналитики
A79: Атрибут | B79: УтвПланНазн | C79: =Отчет!D21 -> 0 | J79: Утверждено плановых назначений
A80: Атрибут | B80: ИспЛицСч | C80: =Отчет!E21 -> 0 | J80: Исполнено плановых назначений через лицевые счета
A81: Атрибут | B81: ИспБанкСч | C81: =Отчет!F21 -> 0 | J81: Исполнено плановых назначений через банковские счета
A82: Атрибут | B82: ИспКасУчр | C82: =Отчет!G21 -> 0 | J82: Исполнено плановых назначений через кассу учреждения
A83: Атрибут | B83: ИспНекасОп | C83: =Отчет!H21 -> 0 | J83: Исполнено плановых назначений некассовыми операциями
A84: Атрибут | B84: ИспИтого | C84: =Отчет!I21 -> 0 | J84: Исполнено плановых назначений итого
A85: Атрибут | B85: НеИспПланНазн | C85: =Отчет!J21 -> 0 | J85: Не исполнено плановых назначений
A86: ###
A87: ###
A88: Элемент | B88: ДохПлатУсл | J88: Доходы от оказания платных услуг (работ)
A89: Атрибут | B89: КодАналит | C89: =Отчет!C22 -> 130 | J89: Код аналитики
A90: Атрибут | B90: УтвПланНазн | C90: =Отчет!D22 -> 1521892 | J90: Утверждено плановых назначений
A91: Атрибут | B91: ИспЛицСч | C91: =Отчет!E22 -> 1521892 | J91: Исполнено плановых назначений через лицевые счета
A92: Атрибут | B92: ИспБанкСч | C92: =Отчет!F22 -> 0 | J92: Исполнено плановых назначений через банковские счета
A93: Атрибут | B93: ИспКасУчр | C93: =Отчет!G22 -> 0 | J93: Исполнено плановых назначений через кассу учреждения
A94: Атрибут | B94: ИспНекасОп | C94: =Отчет!H22 -> 0 | J94: Исполнено плановых назначений некассовыми операциями
A95: Атрибут | B95: ИспИтого | C95: =Отчет!I22 -> 1521892 | J95: Исполнено плановых назначений итого
A96: Атрибут | B96: НеИспПланНазн | C96: =Отчет!J22 -> 0 | J96: Не исполнено плановых назначений
A97: ###
A98: Элемент | B98: ДохШтраф | J98: Доходы от штрафов, пеней, иных сумм принудительного изъятия
A99: Атрибут | B99: КодАналит | C99: =Отчет!C23 -> 140 | J99: Код аналитики
A100: Атрибут | B100: УтвПланНазн | C100: =Отчет!D23 -> 0 | J100: Утверждено плановых назначений
A101: Атрибут | B101: ИспЛицСч | C101: =Отчет!E23 -> 0 | J101: Исполнено плановых назначений через лицевые счета
A102: Атрибут | B102: ИспБанкСч | C102: =Отчет!F23 -> 0 | J102: Исполнено плановых назначений через банковские счета
A103: Атрибут | B103: ИспКасУчр | C103: =Отчет!G23 -> 0 | J103: Исполнено плановых назначений через кассу учреждения
A104: Атрибут | B104: ИспНекасОп | C104: =Отчет!H23 -> 0 | J104: Исполнено плановых назначений некассовыми операциями
A105: Атрибут | B105: ИспИтого | C105: =Отчет!I23 -> 0 | J105: Исполнено плановых назначений итого
A106: Атрибут | B106: НеИспПланНазн | C106: =Отчет!J23 -> 0 | J106: Не исполнено плановых назначений
A107: ###
A108: Элемент | B108: БВПостБюдж | J108: Безвозмездные поступления от бюджетов
A109: Элемент | B109: БВПостБюджВс | D109: * | J109: Безвозмездные поступления от бюджетов
A110: Атрибут | B110: КодАналит | C110: =Отчет!C24 -> 150 | J110: Код аналитики
A111: Атрибут | B111: УтвПланНазн | C111: =Отчет!D24 -> 0 | J111: Утверждено плановых назначений
A112: Атрибут | B112: ИспЛицСч | C112: =Отчет!E24 -> 0 | J112: Исполнено плановых назначений через лицевые счета
A113: Атрибут | B113: ИспБанкСч | C113: =Отчет!F24 -> 0 | J113: Исполнено плановых назначений через банковские счета
A114: Атрибут | B114: ИспКасУчр | C114: =Отчет!G24 -> 0 | J114: Исполнено плановых назначений через кассу учреждения
A115: Атрибут | B115: ИспНекасОп | C115: =Отчет!H24 -> 0 | J115: Исполнено плановых назначений некассовыми операциями
A116: Атрибут | B116: ИспИтого | C116: =Отчет!I24 -> 0 | J116: Исполнено плановых назначений итого
A117: Атрибут | B117: НеИспПланНазн | C117: =Отчет!J24 -> 0 | J117: Не исполнено плановых назначений
A118: ###
A119: Элемент | B119: ПостИно | J119: Безвозмездные поступления от бюджетов
A120: Атрибут | B120: КодАналит | C120: =Отчет!C26 -> 152 | J120: Код аналитики
A121: Атрибут | B121: УтвПланНазн | C121: =Отчет!D26 -> 0 | J121: Утверждено плановых назначений
A122: Атрибут | B122: ИспЛицСч | C122: =Отчет!E26 -> 0 | J122: Исполнено плановых назначений через лицевые счета
A123: Атрибут | B123: ИспБанкСч | C123: =Отчет!F26 -> 0 | J123: Исполнено плановых назначений через банковские счета
A124: Атрибут | B124: ИспКасУчр | C124: =Отчет!G26 -> 0 | J124: Исполнено плановых назначений через кассу учреждения
A125: Атрибут | B125: ИспНекасОп | C125: =Отчет!H26 -> 0 | J125: Исполнено плановых назначений некассовыми операциями
A126: Атрибут | B126: ИспИтого | C126: =Отчет!I26 -> 0 | J126: Исполнено плановых назначений итого
A127: Атрибут | B127: НеИспПланНазн | C127: =Отчет!J26 -> 0 | J127: Не исполнено плановых назначений
A128: ###
A129: Элемент | B129: ПостМФО | J129: Безвозмездные поступления от бюджетов
A130: Атрибут | B130: КодАналит | C130: =Отчет!C27 -> 153 | J130: Код аналитики
A131: Атрибут | B131: УтвПланНазн | C131: =Отчет!D27 -> 0 | J131: Утверждено плановых назначений
A132: Атрибут | B132: ИспЛицСч | C132: =Отчет!E27 -> 0 | J132: Исполнено плановых назначений через лицевые счета
A133: Атрибут | B133: ИспБанкСч | C133: =Отчет!F27 -> 0 | J133: Исполнено плановых назначений через банковские счета
A134: Атрибут | B134: ИспКасУчр | C134: =Отчет!G27 -> 0 | J134: Исполнено плановых назначений через кассу учреждения
A135: Атрибут | B135: ИспНекасОп | C135: =Отчет!H27 -> 0 | J135: Исполнено плановых назначений некассовыми операциями
A136: Атрибут | B136: ИспИтого | C136: =Отчет!I27 -> 0 | J136: Исполнено плановых назначений итого
A137: Атрибут | B137: НеИспПланНазн | C137: =Отчет!J27 -> 0 | J137: Не исполнено плановых назначений
A138: ###
A139: ###
A140: Элемент | B140: ДохАктив | J140: Доходы от операций с активами
A141: Элемент | B141: ДохАктивВс | D141: * | J141: Доходы от операций с активами всего
A142: Атрибут | B142: УтвПланНазн | C142: =Отчет!D28 -> 0 | J142: Утверждено плановых назначений
A143: Атрибут | B143: ИспЛицСч | C143: =Отчет!E28 -> 0 | J143: Исполнено плановых назначений через лицевые счета
A144: Атрибут | B144: ИспБанкСч | C144: =Отчет!F28 -> 0 | J144: Исполнено плановых назначений через банковские счета
A145: Атрибут | B145: ИспКасУчр | C145: =Отчет!G28 -> 0 | J145: Исполнено плановых назначений через кассу учреждения
A146: Атрибут | B146: ИспНекасОп | C146: =Отчет!H28 -> 0 | J146: Исполнено плановых назначений некассовыми операциями
A147: Атрибут | B147: ИспИтого | C147: =Отчет!I28 -> 0 | J147: Исполнено плановых назначений итого
A148: Атрибут | B148: НеИспПланНазн | C148: =Отчет!J28 -> 0 | J148: Не исполнено плановых назначений
A149: ###
A150: Элемент | B150: ВыбытОС | J150: От выбытий основных средств
A151: Атрибут | B151: КодАналит | C151: =Отчет!C30 -> 410 | J151: Код аналитики
A152: Атрибут | B152: УтвПланНазн | C152: =Отчет!D30 -> 0 | J152: Утверждено плановых назначений
A153: Атрибут | B153: ИспЛицСч | C153: =Отчет!E30 -> 0 | J153: Исполнено плановых назначений через лицевые счета
A154: Атрибут | B154: ИспБанкСч | C154: =Отчет!F30 -> 0 | J154: Исполнено плановых назначений через банковские счета
A155: Атрибут | B155: ИспКасУчр | C155: =Отчет!G30 -> 0 | J155: Исполнено плановых назначений через кассу учреждения
A156: Атрибут | B156: ИспНекасОп | C156: =Отчет!H30 -> 0 | J156: Исполнено плановых назначений некассовыми операциями
A157: Атрибут | B157: ИспИтого | C157: =Отчет!I30 -> 0 | J157: Исполнено плановых назначений итого
A158: Атрибут | B158: НеИспПланНазн | C158: =Отчет!J30 -> 0 | J158: Не исполнено плановых назначений
A159: ###
A160: Элемент | B160: ВыбытНМА | J160: От выбытий нематериальных активов
A161: Атрибут | B161: КодАналит | C161: =Отчет!C31 -> 420 | J161: Код аналитики
A162: Атрибут | B162: УтвПланНазн | C162: =Отчет!D31 -> 0 | J162: Утверждено плановых назначений
A163: Атрибут | B163: ИспЛицСч | C163: =Отчет!E31 -> 0 | J163: Исполнено плановых назначений через лицевые счета
A164: Атрибут | B164: ИспБанкСч | C164: =Отчет!F31 -> 0 | J164: Исполнено плановых назначений через банковские счета
A165: Атрибут | B165: ИспКасУчр | C165: =Отчет!G31 -> 0 | J165: Исполнено плановых назначений через кассу учреждения
A166: Атрибут | B166: ИспНекасОп | C166: =Отчет!H31 -> 0 | J166: Исполнено плановых назначений некассовыми операциями
A167: Атрибут | B167: ИспИтого | C167: =Отчет!I31 -> 0 | J167: Исполнено плановых назначений итого
A168: Атрибут | B168: НеИспПланНазн | C168: =Отчет!J31 -> 0 | J168: Не исполнено плановых назначений
A169: ###
A170: Элемент | B170: ВыбНПрА | J170: От выбытий непроизведенных активов
A171: Атрибут | B171: КодАналит | C171: =Отчет!C32 -> 430 | J171: Код аналитики
A172: Атрибут | B172: УтвПланНазн | C172: =Отчет!D32 -> 0 | J172: Утверждено плановых назначений
A173: Атрибут | B173: ИспЛицСч | C173: =Отчет!E32 -> 0 | J173: Исполнено плановых назначений через лицевые счета
A174: Атрибут | B174: ИспБанкСч | C174: =Отчет!F32 -> 0 | J174: Исполнено плановых назначений через банковские счета
A175: Атрибут | B175: ИспКасУчр | C175: =Отчет!G32 -> 0 | J175: Исполнено плановых назначений через кассу учреждения
A176: Атрибут | B176: ИспНекасОп | C176: =Отчет!H32 -> 0 | J176: Исполнено плановых назначений некассовыми операциями
A177: Атрибут | B177: ИспИтого | C177: =Отчет!I32 -> 0 | J177: Исполнено плановых назначений итого
A178: Атрибут | B178: НеИспПланНазн | C178: =Отчет!J32 -> 0 | J178: Не исполнено плановых назначений
A179: ###
A180: Элемент | B180: ВыбМатЗ | J180: От выбытий материальных запасов
A181: Атрибут | B181: КодАналит | C181: =Отчет!C33 -> 440 | J181: Код аналитики
A182: Атрибут | B182: УтвПланНазн | C182: =Отчет!D33 -> 0 | J182: Утверждено плановых назначений
A183: Атрибут | B183: ИспЛицСч | C183: =Отчет!E33 -> 0 | J183: Исполнено плановых назначений через лицевые счета
A184: Атрибут | B184: ИспБанкСч | C184: =Отчет!F33 -> 0 | J184: Исполнено плановых назначений через банковские счета
A185: Атрибут | B185: ИспКасУчр | C185: =Отчет!G33 -> 0 | J185: Исполнено плановых назначений через кассу учреждения
A186: Атрибут | B186: ИспНекасОп | C186: =Отчет!H33 -> 0 | J186: Исполнено плановых назначений некассовыми операциями
A187: Атрибут | B187: ИспИтого | C187: =Отчет!I33 -> 0 | J187: Исполнено плановых назначений итого
A188: Атрибут | B188: НеИспПланНазн | C188: =Отчет!J33 -> 0 | J188: Не исполнено плановых назначений
A189: ###
A190: Элемент | B190: ВыбЦБ | J190: От выбытий ценных бумаг, кроме акций
A191: Атрибут | B191: КодАналит | C191: =Отчет!C34 -> 620 | J191: Код аналитики
A192: Атрибут | B192: УтвПланНазн | C192: =Отчет!D34 -> 0 | J192: Утверждено плановых назначений
A193: Атрибут | B193: ИспЛицСч | C193: =Отчет!E34 -> 0 | J193: Исполнено плановых назначений через лицевые счета
A194: Атрибут | B194: ИспБанкСч | C194: =Отчет!F34 -> 0 | J194: Исполнено плановых назначений через банковские счета
A195: Атрибут | B195: ИспКасУчр | C195: =Отчет!G34 -> 0 | J195: Исполнено плановых назначений через кассу учреждения
A196: Атрибут | B196: ИспНекасОп | C196: =Отчет!H34 -> 0 | J196: Исполнено плановых назначений некассовыми операциями
A197: Атрибут | B197: ИспИтого | C197: =Отчет!I34 -> 0 | J197: Исполнено плановых назначений итого
A198: Атрибут | B198: НеИспПланНазн | C198: =Отчет!J34 -> 0 | J198: Не исполнено плановых назначений
A199: ###
A200: Элемент | B200: ВыбАкц | J200: От выбытий акций
... 672 more rows
